fUSD/lending_fUSD_20260221
["ID","MTS","AMOUNT","RATE_DAILY","PERIOD"]
[406244625,1771657842801,-500.0,0.00039799,30]
[406244626,1771657842811,-1100.0,0.00039799,30]
[406244627,1771657842821,-1100.0,0.00039799,30]
[406244628,1771657842831,-500.0,0.00039799,30]
[406244629,1771657842841,-1100.0,0.00039799,30]
[406244630,1771657842851,-500.0,0.00039799,30]
[406244631,1771657842860,-1100.0,0.00039799,30]
[406244632,1771657842870,-500.0,0.00039799,30]
[406244633,1771657842880,-1100.0,0.00039799,30]
[406244634,1771657842890,-1100.0,0.00039799,30]
[406244635,1771657842900,-1100.0,0.00039799,30]
[406244636,1771657842910,-1100.0,0.00039799,30]
[406244637,1771657842920,-1100.0,0.00039799,30]
[406244638,1771657842929,-1100.0,0.00039799,30]
[406244639,1771657842939,-1100.0,0.00039799,30]
[406244640,1771657842948,-1100.0,0.00039799,30]
[406244641,1771657842957,-1121.87998365,0.00039799,30]
[406244642,1771657842967,-329.54,0.000398,14]
[406244643,1771657842976,-1315.0,0.00039905,2]
[406244644,1771657842988,-346.04,0.0004,120]
[406244645,1771657842997,-650.41,0.0004,120]
[406244646,1771657843007,-245.04,0.0004,120]
[406244647,1771657843017,-152.0,0.0004,120]
[406244648,1771657843027,-152.0,0.0004,120]
[406244649,1771657843036,-160.0,0.0004,120]
[406244650,1771657843046,-1315.0,0.00040029,2]
[406244651,1771657843060,-398.11,0.00040092,2]
[406244652,1771657843070,-1315.0,0.00040273,2]
[406244653,1771657843080,-150.96509003,0.00040321,5]
[406244654,1771657843090,-150.0,0.0004038,7]
[406244655,1771657843099,-150.0,0.0004038,7]
[406244656,1771657843109,-150.0,0.0004038,7]
[406244657,1771657843118,-234.06270662,0.0004038,7]
[406244658,1771657843128,-150.0,0.0004038,7]
[406244659,1771657843137,-150.0,0.0004038,7]
[406244660,1771657843146,-150.0,0.0004038,7]
[406244661,1771657843156,-150.0,0.0004038,7]
[406244662,1771657843165,-150.0,0.0004038,7]
[406244663,1771657843175,-150.0,0.0004038,7]
[406244664,1771657843184,-150.0,0.0004038,7]
[406244665,1771657843194,-150.0,0.0004038,7]
[406244666,1771657843203,-150.0,0.0004038,7]
[406244667,1771657843213,-150.0,0.0004038,7]
[406244668,1771657843222,-150.0,0.0004038,7]
[406244669,1771657843231,-150.0,0.0004038,7]
[406244670,1771657843241,-300.0,0.00040441,2]
[406244671,1771657843251,-434.09436665,0.00040441,2]
[406244672,1771657843260,-150.0,0.0004047,7]
[406244673,1771657843269,-150.0,0.00040546,7]
[406244674,1771657843279,-150.0,0.0004056,7]
[406244675,1771657843288,-150.0,0.00040584,7]
[406244676,1771657843298,-150.0,0.00040584,7]
[406244677,1771657843308,-152.0,0.000406,120]
[406244678,1771657843317,-150.0,0.0004063,7]
[406244679,1771657843327,-150.0,0.0004065,7]
[406244680,1771657843336,-150.0,0.00040701,7]
[406244681,1771657843346,-150.0,0.00040713,7]
[406244682,1771657843356,-150.0,0.00040739,7]
[406244683,1771657843366,-636.36573111,0.00040755,28]
[406244684,1771657843375,-150.0,0.00040788,7]
[406244685,1771657843386,-150.0,0.00040788,7]
[406244686,1771657843395,-152.0,0.000408,120]
[406244687,1771657843406,-150.0,0.00040829,7]
[406244688,1771657843416,-150.0,0.00040879,7]
[406244689,1771657843424,-150.0,0.00040879,7]
[406244690,1771657843433,-150.0,0.00040879,7]
[406244691,1771657843443,-150.0,0.00040919,7]
[406244692,1771657843452,-65198.0,0.0004095,60]
[406244693,1771657843462,-37281.85411756,0.00040986,5]
[406244694,1771657843471,-150.0,0.00040992,7]
[406244695,1771657843480,-150.0,0.00040992,7]
[406244696,1771657843490,-660.80659205,0.00041,30]
[406244697,1771657843504,-202.66,0.00041,14]
[406244698,1771657843513,-150.0,0.00041008,7]
[406244699,1771657843522,-150.0,0.00041021,7]
[406244700,1771657843532,-150.0,0.00041021,7]
[406244701,1771657843542,-150.0,0.00041021,7]
[406244702,1771657843551,-150.0,0.00041045,7]
[406244703,1771657843561,-388.2,0.00041084,30]
[406244704,1771657843570,-842.0,0.00041096,120]
[406244705,1771657843584,-300.0,0.00041096,10]
[406244706,1771657843594,-223.51177975,0.00041096,120]
[406244707,1771657843603,-151.0,0.00041096,120]
[406244708,1771657843613,-151.0,0.00041096,120]
[406244709,1771657843622,-151.0,0.00041096,120]
[406244710,1771657843631,-151.0,0.00041096,120]
[406244711,1771657843641,-151.0,0.00041096,120]
[406244712,1771657843650,-151.0,0.00041096,120]
[406244713,1771657843660,-151.0,0.00041096,120]
[406244714,1771657843670,-151.0,0.00041096,120]
[406244715,1771657843679,-150.0,0.00041098,30]
[406244716,1771657843689,-466.22,0.000411,14]
[406244717,1771657843698,-288.12,0.000411,30]
[406244718,1771657843707,-150.0,0.00041128,30]
[406244719,1771657843717,-150.0,0.00041128,30]
[406244720,1771657843726,-150.0,0.00041128,30]
[406244721,1771657843736,-175.9651313,0.00041171,2]
[406244722,1771657843745,-150.0,0.00041188,30]
[406244723,1771657843755,-150.0,0.00041196,30]
[406244724,1771657843765,-150.0,0.00041196,30]
[406244725,1771657843774,-150.0,0.00041211,30]
[406244726,1771657843784,-151.0,0.00041228,14]
[406244727,1771657843793,-128423.7783676,0.00041231,2]
[406244728,1771657843805,-150.0,0.00041278,30]
[406244729,1771657843815,-152.0,0.000413,120]
[406244730,1771657843824,-150.0,0.00041342,30]
[406244731,1771657843833,-150.0,0.00041367,30]
[406244732,1771657843842,-842.0,0.0004137,120]
[406244733,1771657843852,-150.0,0.00041377,30]
[406244734,1771657843861,-150.0,0.00041377,30]
[406244735,1771657843870,-150.0,0.00041377,30]
[406244736,1771657843879,-150.0,0.000414,30]
[406244737,1771657843888,-150.0,0.000414,30]
[406244738,1771657843898,-150.0,0.00041457,30]
[406244739,1771657843907,-200.0,0.00041458,120]
[406244740,1771657843917,-994.19,0.000415,30]
[406244741,1771657843927,-152.0,0.000415,120]
[406244742,1771657843936,-150.0,0.00041544,30]
[406244743,1771657843946,-150.0,0.00041547,30]
[406244744,1771657843955,-2587.0,0.000416,7]
[406244745,1771657843964,-150.0,0.00041604,30]
[406244746,1771657843974,-150.0,0.00041604,30]
[406244747,1771657843983,-150.0,0.00041627,30]
[406244748,1771657843992,-150.0,0.00041637,30]
[406244749,1771657844064,-842.0,0.00041644,120]
[406244750,1771657844073,-150.0,0.00041662,30]
[406244751,1771657844083,-150.0,0.00041662,30]
[406244752,1771657844092,-150.0,0.00041662,30]
[406244753,1771657844101,-150.0,0.0004171,30]
[406244754,1771657844110,-150.0,0.00041726,30]
[406244755,1771657844120,-1038.2,0.00041742,30]
[406244756,1771657844131,-150.0,0.00041808,30]
[406244757,1771657844139,-150.0,0.00041808,30]
[406244758,1771657844150,-150.0,0.00041816,30]
[406244759,1771657844161,-150.0,0.00041876,30]
[406244760,1771657844170,-150.0,0.00041876,30]
[406244761,1771657844179,-150.0,0.00041876,30]
[406244762,1771657844191,-150.0,0.00041876,30]
[406244763,1771657844202,-150.0,0.00041876,30]
[406244764,1771657844212,-152.0,0.000419,120]
[406244765,1771657844222,-150.0,0.00041906,30]
[406244766,1771657844232,-842.0,0.00041918,120]
[406244767,1771657844242,-600.0,0.00041918,10]
[406244768,1771657844251,-150.0,0.00041983,30]
[406244769,1771657844261,-211.41,0.00041987,14]
[406244770,1771657844270,-150.0,0.00041996,30]
[406244771,1771657844279,-1868.79007999,0.00042,120]
[406244772,1771657844289,-500.0,0.00042,120]
[406244773,1771657844297,-150.0,0.00042012,30]
[406244774,1771657844306,-150.0,0.00042012,30]
[406244775,1771657844316,-150.0,0.00042042,30]
[406244776,1771657844325,-150.0,0.00042085,30]
[406244777,1771657844334,-186.3211,0.00042102,120]
[406244778,1771657844343,-150.0,0.00042125,30]
[406244779,1771657844352,-19471.05351546,0.00042165,15]
[406244780,1771657844361,-150.0,0.00042175,30]
[406244781,1771657844370,-169.79240914,0.0004219,120]
[406244782,1771657844379,-169.77,0.0004219,120]
[406244783,1771657844388,-842.0,0.00042192,120]
[406244784,1771657844397,-16267.60274508,0.000422,15]
[406244785,1771657844406,-150.0,0.00042208,30]
[406244786,1771657844416,-150.0,0.00042216,30]
[406244787,1771657844425,-150.0,0.00042216,30]
[406244788,1771657844434,-150.0,0.00042265,30]
[406244789,1771657844444,-151.000002,0.00042265,120]
[406244790,1771657844453,-151.0,0.00042265,120]
[406244791,1771657844462,-151.0,0.00042265,120]
[406244792,1771657844471,-151.0,0.00042265,120]
[406244793,1771657844480,-151.0,0.00042265,120]
[406244794,1771657844489,-151.0,0.00042265,7]
[406244795,1771657844499,-154.945804,0.00042265,120]
[406244796,1771657844508,-151.0,0.00042265,120]
[406244797,1771657844517,-151.0,0.00042265,31]
[406244798,1771657844527,-151.0,0.00042265,120]
[406244799,1771657844536,-28655.218234,0.00042265,2]
[406244800,1771657844545,-207.58634277,0.00042265,30]
[406244801,1771657844554,-169.77,0.0004229,120]
[406244802,1771657844565,-152.0,0.000423,120]
[406244803,1771657844575,-65198.0,0.000423,60]
[406244804,1771657844584,-179.878644,0.000423,120]
[406244805,1771657844593,-151.0,0.000423,120]
[406244806,1771657844602,-151.000006,0.000423,120]
[406244808,1771657844612,-161.731781,0.000423,120]
[406244809,1771657844622,-207.546993,0.000423,120]
[406244810,1771657844631,-151.0,0.000423,120]
[406244811,1771657844640,-180.099064,0.000423,120]
[406244812,1771657844649,-151.0,0.000423,120]
[406244813,1771657844658,-280.224296,0.000423,2]
[406244814,1771657844666,-280.224296,0.000423,2]
[406244815,1771657844675,-280.224296,0.000423,2]
[406244816,1771657844684,-280.224296,0.000423,2]
[406244817,1771657844694,-1165.660671,0.000423,120]
[406244818,1771657844703,-1165.660671,0.000423,120]
[406244819,1771657844712,-1165.660671,0.000423,120]
[406244820,1771657844721,-151.0,0.000423,120]
[406244821,1771657844730,-1165.660671,0.000423,120]
[406244822,1771657844739,-171.524897,0.000423,120]
[406244823,1771657844748,-163.774851,0.000423,120]
[406244824,1771657844758,-165.215076,0.000423,120]
[406244825,1771657844767,-151.0,0.000423,120]
[406244826,1771657844777,-151.0,0.000423,120]
[406244827,1771657844786,-151.0,0.000423,120]
[406244828,1771657844796,-205.032456,0.000423,120]
[406244829,1771657844804,-151.0,0.000423,120]
[406244830,1771657844813,-268.091694,0.000423,120]
[406244831,1771657844822,-151.0,0.000423,120]
[406244832,1771657844831,-151.0,0.000423,120]
[406244833,1771657844840,-151.0,0.000423,120]
[406244834,1771657844849,-151.0,0.000423,120]
[406244835,1771657844859,-151.0,0.000423,120]
[406244836,1771657844868,-151.791813,0.000423,120]
[406244837,1771657844877,-151.0,0.000423,120]
[406244838,1771657844887,-448.447899,0.000423,120]
[406244839,1771657844896,-448.447899,0.000423,120]
[406244840,1771657844905,-169.139463,0.000423,7]
[406244841,1771657844914,-448.447899,0.000423,120]
[406244842,1771657844923,-448.447899,0.000423,120]
[406244843,1771657844932,-169.139463,0.000423,7]
[406244844,1771657844940,-169.139463,0.000423,7]
[406244845,1771657844949,-169.139463,0.000423,7]
[406244846,1771657844958,-150.0,0.00042303,30]
[406244847,1771657844968,-150.0,0.00042303,30]
[406244848,1771657844978,-150.0,0.00042303,30]
[406244849,1771657844987,-150.0,0.00042354,30]
[406244850,1771657844997,-150.0,0.00042374,30]
[406244851,1771657845008,-150.0,0.00042374,30]
[406244852,1771657845018,-150.0,0.00042374,30]
[406244853,1771657845028,-169.77,0.0004239,120]
[406244854,1771657845037,-329.54,0.000424,14]
[406244855,1771657845046,-1038.2,0.000424,30]
[406244856,1771657845056,-2000.0,0.000424,7]
[406244857,1771657845067,-150.0,0.0004242,30]
[406244858,1771657845076,-150.0,0.0004242,30]
[406244859,1771657845085,-150.0,0.00042444,30]
[406244860,1771657845095,-842.0,0.00042466,120]
[406244861,1771657845105,-169.77,0.0004249,120]
[406244862,1771657845115,-5157.01799273,0.000425,120]
[406244863,1771657845125,-150.0,0.00042534,30]
[406244864,1771657845135,-150.0,0.00042541,30]
[406244865,1771657845146,-169.77,0.0004259,120]
[406244866,1771657845156,-202.66,0.000426,14]
[406244867,1771657845166,-152.0,0.000426,120]
[406244868,1771657845176,-276.3,0.000426,60]
[406244869,1771657845187,-2000.7794,0.00042624,4]
[406244870,1771657845196,-6002.1038,0.00042624,4]
[406244871,1771657845207,-150.0,0.00042624,30]
[406244872,1771657845218,-150.0,0.00042624,30]
[406244873,1771657845228,-150.0,0.00042624,30]
[406244874,1771657845237,-150.0,0.00042624,30]
[406244875,1771657845246,-150.0,0.00042624,30]
[406244876,1771657845256,-150.0,0.00042624,30]
[406244877,1771657845265,-150.0,0.00042624,30]
[406244878,1771657845274,-150.0,0.00042624,30]
[406244879,1771657845283,-150.0,0.00042624,30]
[406244880,1771657845292,-169.77,0.0004269,120]
[406244881,1771657845302,-200.0,0.00042692,120]
[406244882,1771657845311,-300.0,0.00042695,30]
[406244883,1771657845322,-33217.92,0.00042696,2]
[406244884,1771657845331,-2000.0,0.000427,2]
[406244885,1771657845340,-8838.19,0.000427,14]
[406244886,1771657845349,-150.0,0.00042707,30]
[406244887,1771657845359,-150.0,0.00042713,30]
[406244888,1771657845368,-842.0,0.0004274,120]
[406244889,1771657845377,-161.20688867,0.0004274,10]
[406244890,1771657845387,-171.41831138,0.000428,120]
[406244891,1771657845396,-150.0,0.00042803,30]
[406244892,1771657845405,-150.0,0.00042828,30]
[406244893,1771657845415,-150.0,0.00042828,30]
[406244894,1771657845424,-150.0,0.00042873,30]
[406244895,1771657845433,-150.0,0.00042873,30]
[406244896,1771657845442,-150.0,0.00042873,30]
[406244897,1771657845451,-150.0,0.00042893,30]
[406244898,1771657845460,-500.65501467,0.000429,120]
[406244899,1771657845470,-150.0,0.00042907,120]
[406244900,1771657845481,-150.0,0.00042944,30]
[406244901,1771657845490,-150.0,0.00042944,30]
[406244902,1771657845501,-150.0,0.00042944,30]
[406244903,1771657845510,-150.0,0.00042975,120]
[406244904,1771657845519,-150.0,0.00042983,30]
[406244905,1771657845528,-152.0,0.00043,120]
[406244906,1771657845537,-170.0,0.00043,90]
[406244907,1771657845546,-150.0,0.00043,90]
[406244908,1771657845555,-150.0,0.00043011,120]
[406244909,1771657845564,-842.0,0.00043014,120]
[406244910,1771657845574,-150.0,0.00043014,90]
[406244911,1771657845583,-150.0,0.00043032,30]
[406244912,1771657845593,-150.0,0.00043032,30]
[406244913,1771657845602,-150.0,0.00043039,30]
[406244914,1771657845610,-150.0,0.00043072,30]
[406244915,1771657845620,-5236.95527,0.00043072,30]
[406244916,1771657845629,-150.0,0.00043122,30]
[406244917,1771657845638,-150.0,0.00043162,30]
[406244918,1771657845647,-428.0,0.00043179,16]
[406244919,1771657845656,-466.22,0.000432,14]
[406244920,1771657845665,-152.0,0.000432,120]
[406244921,1771657845675,-2000.0,0.000432,7]
[406244922,1771657845683,-150.0,0.00043205,30]
[406244923,1771657845693,-500.0,0.00043223,60]
[406244924,1771657845702,-511.40531467,0.00043223,60]
[406244925,1771657845711,-500.0,0.00043223,60]
[406244926,1771657845720,-150.0,0.00043235,30]
[406244927,1771657845730,-150.0,0.00043235,30]
[406244928,1771657845739,-150.0,0.00043252,30]
[406244929,1771657845748,-150.0,0.00043265,30]
[406244930,1771657845756,-842.0,0.00043288,120]
[406244931,1771657845765,-1590.30811988,0.000433,2]
[406244932,1771657845775,-150.0,0.00043342,30]
[406244933,1771657845784,-738.0,0.00043368,30]
[406244934,1771657845793,-150.0,0.00043371,30]
[406244935,1771657845802,-150.0,0.00043371,30]
[406244936,1771657845811,-150.0,0.00043371,30]
[406244937,1771657845820,-150.0,0.00043371,30]
[406244938,1771657845829,-150.0,0.00043371,30]
[406244939,1771657845838,-164.17122,0.000434,120]
[406244941,1771657845846,-164.17122,0.000434,120]
[406244943,1771657845856,-150.0,0.00043431,30]
[406244944,1771657845865,-150.0,0.00043439,30]
[406244945,1771657845879,-150.0,0.00043439,30]
[406244946,1771657845895,-150.0,0.00043451,30]
[406244947,1771657845905,-1180.30197326,0.00043451,30]
[406244948,1771657845914,-150.0,0.00043451,30]
[406244949,1771657845923,-1803.8156126,0.00043451,30]
[406244950,1771657845934,-150.0,0.00043451,30]
[406244951,1771657845943,-4320.3494569,0.00043451,30]
[406244952,1771657845953,-173.74378417,0.0004346,30]
[406244953,1771657845962,-904.38096735,0.00043497,2]
[406244954,1771657845971,-150.0,0.00043521,30]
[406244955,1771657845980,-150.0,0.00043538,30]
[406244956,1771657845989,-842.0,0.00043562,120]
[406244957,1771657845998,-150.0,0.00043585,30]
[406244958,1771657846007,-150.0,0.00043585,30]
[406244959,1771657846017,-150.0,0.00043585,30]
[406244960,1771657846025,-150.0,0.00043611,30]
[406244961,1771657846036,-150.0,0.00043621,30]
[406244962,1771657846045,-150.0,0.00043643,30]
[406244963,1771657846054,-150.0,0.00043643,30]
[406244964,1771657846063,-65198.0,0.0004365,60]
[406244965,1771657846072,-739.0,0.00043696,30]
[406244966,1771657846081,-151.0,0.000437,120]
[406244967,1771657846091,-151.0,0.000437,120]
[406244968,1771657846102,-150.0,0.000437,30]
[406244969,1771657846111,-150.0,0.00043704,30]
[406244970,1771657846120,-3046.8215481,0.00043708,2]
[406244971,1771657846130,-265.41,0.00043757,14]
[406244972,1771657846140,-150.0,0.0004379,30]
[406244973,1771657846149,-161.90624843,0.000438,120]
[406244974,1771657846158,-329.54,0.000438,14]
[406244975,1771657846167,-202.66,0.000438,14]
[406244976,1771657846177,-152.0,0.000438,120]
[406244977,1771657846187,-265.41,0.00043813,14]
[406244978,1771657846198,-205.0,0.0004383,120]
[406244979,1771657846208,-200.0,0.00043835,120]
[406244980,1771657846218,-500.0,0.00043835,120]
[406244981,1771657846228,-151.0,0.00043835,120]
[406244982,1771657846238,-500.0,0.00043835,120]
[406244983,1771657846246,-500.0,0.00043835,120]
[406244984,1771657846255,-151.0,0.00043835,120]
[406244985,1771657846264,-250.0,0.00043835,120]
[406244986,1771657846273,-156.587,0.00043835,120]
[406244987,1771657846282,-250.0,0.00043835,120]
[406244988,1771657846291,-162.380719,0.00043835,120]
[406244989,1771657846300,-254.8861323,0.00043835,120]
[406244990,1771657846309,-911.64591255,0.00043835,120]
[406244991,1771657846318,-312.55119889,0.00043835,120]
[406244992,1771657846327,-500.0,0.00043835,120]
[406244993,1771657846336,-578.20924308,0.00043835,120]
[406244994,1771657846346,-151.0,0.00043835,120]
[406244995,1771657846357,-151.0,0.00043835,120]
[406244996,1771657846366,-178.34454881,0.00043835,120]
[406244997,1771657846375,-151.0,0.00043835,120]
[406244998,1771657846384,-520.0,0.00043835,120]
[406244999,1771657846393,-156.587,0.00043835,120]
[406245000,1771657846402,-151.0,0.00043835,120]
[406245001,1771657846412,-539.24,0.00043835,120]
[406245002,1771657846422,-162.380719,0.00043835,120]
[406245003,1771657846431,-152.84129386,0.00043835,120]
[406245004,1771657846441,-181.88765535,0.00043835,120]
[406245005,1771657846451,-227.99655665,0.00043835,120]
[406245006,1771657846462,-374.93516283,0.00043835,120]
[406245007,1771657846471,-500.0,0.00043835,120]
[406245008,1771657846479,-518.5,0.00043835,120]
[406245009,1771657846488,-537.6845,0.00043835,120]
[406245010,1771657846497,-168.91834196,0.00043835,120]
[406245011,1771657846509,-500.0,0.00043835,120]
[406245012,1771657846517,-500.0,0.00043835,120]
[406245013,1771657846526,-557.5788265,0.00043835,120]
[406245014,1771657846535,-500.0,0.00043835,120]
[406245015,1771657846545,-500.0,0.00043835,120]
[406245016,1771657846554,-578.20924308,0.00043835,120]
[406245017,1771657846563,-500.0,0.00043835,120]
[406245018,1771657846572,-500.0,0.00043835,120]
[406245019,1771657846583,-599.60298507,0.00043835,120]
[406245020,1771657846593,-500.0,0.00043835,120]
[406245021,1771657846602,-500.0,0.00043835,120]
[406245022,1771657846611,-500.0,0.00043835,120]
[406245023,1771657846620,-500.0,0.00043835,120]
[406245024,1771657846629,-621.78829552,0.00043835,120]
[406245025,1771657846638,-372.94109186,0.00043835,120]
[406245026,1771657846647,-500.0,0.00043835,120]
[406245027,1771657846657,-644.79446246,0.00043835,120]
[406245028,1771657846666,-500.0,0.00043835,120]
[406245029,1771657846675,-668.65185757,0.00043835,120]
[406245030,1771657846684,-500.0,0.00043835,120]
[406245031,1771657846693,-693.3919763,0.00043835,120]
[406245032,1771657846702,-500.0,0.00043835,120]
[406245033,1771657846711,-719.04747942,0.00043835,120]
[406245034,1771657846720,-500.0,0.00043835,120]
[406245035,1771657846729,-250.0,0.00043835,120]
[406245036,1771657846738,-745.65223616,0.00043835,120]
[406245037,1771657846747,-500.0,0.00043835,120]
[406245038,1771657846757,-184.69909757,0.00043835,120]
[406245039,1771657846766,-773.2413689,0.00043835,120]
[406245040,1771657846775,-500.0,0.00043835,120]
[406245041,1771657846784,-801.85129955,0.00043835,120]
[406245042,1771657846794,-500.0,0.00043835,120]
[406245043,1771657846804,-831.51979763,0.00043835,120]
[406245044,1771657846813,-500.0,0.00043835,120]
[406245045,1771657846822,-500.0,0.00043835,120]
[406245046,1771657846831,-862.28603014,0.00043835,120]
[406245047,1771657846840,-894.19061326,0.00043835,120]
[406245048,1771657846857,-500.0,0.00043835,120]
[406245049,1771657846868,-500.0,0.00043835,120]
[406245050,1771657846878,-927.27566595,0.00043835,120]
[406245051,1771657846887,-500.0,0.00043835,120]
[406245052,1771657846898,-961.58486559,0.00043835,120]
[406245053,1771657846908,-500.0,0.00043835,120]
[406245054,1771657846917,-500.0,0.00043835,120]
[406245055,1771657846926,-997.16350561,0.00043835,120]
[406245056,1771657846935,-500.0,0.00043835,120]
[406245057,1771657846945,-151.0,0.00043835,120]
[406245058,1771657846955,-156.587,0.00043835,120]
[406245059,1771657846965,-162.380719,0.00043835,120]
[406245060,1771657846975,-191.55365844,0.00043835,120]
[406245061,1771657846985,-200.0,0.00043835,30]
[406245062,1771657846995,-207.4,0.00043835,30]
[406245063,1771657847004,-215.0738,0.00043835,30]
[406245064,1771657847014,-223.0315306,0.00043835,30]
[406245065,1771657847023,-231.28369723,0.00043835,30]
[406245066,1771657847033,-239.84119403,0.00043835,30]
[406245067,1771657847043,-248.71531821,0.00043835,30]
[406245068,1771657847053,-257.91778498,0.00043835,30]
[406245069,1771657847062,-267.46074303,0.00043835,30]
[406245070,1771657847072,-366.28348294,0.00043835,30]
[406245071,1771657847081,-842.0,0.00043836,120]
[406245072,1771657847091,-173.51452037,0.00043836,2]
[406245073,1771657847101,-151.0,0.00043836,120]
[406245074,1771657847110,-151.0,0.00043836,120]
[406245075,1771657847119,-164.46005654,0.00043836,30]
[406245076,1771657847129,-150.0,0.00043836,120]
[406245077,1771657847139,-500.0,0.00043836,120]
[406245078,1771657847149,-535.41177142,0.00043836,120]
[406245079,1771657847158,-150.0,0.00043836,120]
[406245080,1771657847168,-150.0,0.00043836,120]
[406245081,1771657847178,-200.0,0.00043836,120]
[406245082,1771657847187,-150.0,0.00043836,120]
[406245083,1771657847197,-150.0,0.00043836,120]
[406245084,1771657847207,-150.0,0.00043836,120]
[406245085,1771657847216,-500.0,0.00043836,120]
[406245086,1771657847226,-150.0,0.00043836,120]
[406245087,1771657847236,-161.81596152,0.00043836,120]
[406245088,1771657847245,-500.0,0.00043836,120]
[406245089,1771657847255,-500.0,0.00043836,120]
[406245090,1771657847265,-150.0,0.00043836,120]
[406245091,1771657847275,-150.0,0.00043836,2]
[406245092,1771657847284,-500.0,0.00043836,120]
[406245093,1771657847294,-500.0,0.00043836,120]
[406245094,1771657847304,-204.90457647,0.00043836,120]
[406245095,1771657847315,-500.0,0.00043836,120]
[406245096,1771657847324,-500.0,0.00043836,120]
[406245097,1771657847334,-500.0,0.00043836,120]
[406245098,1771657847344,-500.0,0.00043836,120]
[406245099,1771657847353,-505.1733995,0.00043836,120]
[406245100,1771657847363,-500.0,0.00043836,120]
[406245101,1771657847373,-500.0,0.00043836,120]
[406245102,1771657847383,-500.0,0.00043836,120]
[406245103,1771657847394,-500.0,0.00043836,120]
[406245104,1771657847403,-500.0,0.00043836,120]
[406245105,1771657847413,-500.0,0.00043836,120]
[406245106,1771657847422,-500.0,0.00043836,120]
[406245107,1771657847432,-500.0,0.00043836,120]
[406245108,1771657847442,-500.0,0.00043836,120]
[406245109,1771657847452,-500.0,0.00043836,120]
[406245110,1771657847462,-500.0,0.00043836,120]
[406245111,1771657847471,-500.0,0.00043836,120]
[406245112,1771657847482,-500.0,0.00043836,120]
[406245113,1771657847492,-500.0,0.00043836,120]
[406245114,1771657847505,-170.75689752,0.00043836,120]
[406245115,1771657847514,-150.0,0.00043847,30]
[406245116,1771657847524,-150.0,0.00043847,30]
[406245117,1771657847534,-500.0,0.0004386,30]
[406245118,1771657847543,-265.41,0.00043869,14]
[406245119,1771657847553,-150.0,0.0004387,30]
[406245120,1771657847562,-150.0,0.0004387,30]
[406245121,1771657847572,-150.0,0.0004387,30]
[406245122,1771657847582,-150.0,0.0004388,30]
[406245123,1771657847592,-259.46738665,0.000439,120]
[406245124,1771657847602,-152.0,0.000439,120]
[406245125,1771657847611,-8838.19,0.000439,14]
[406245126,1771657847621,-150.0,0.00043906,30]
[406245127,1771657847631,-200.0,0.00043926,120]